[Event "*** SCC Grand Prix: Titled Tuesday Blitz"]
[Site "Chess.com"]
[Date "2020.09.08"]
[Round "9"]
[White "Andrii_Prydun"]
[Black "kidagent"]
[Result "1-0"]
[WhiteElo "2409"]
[BlackElo "2284"]
[TimeControl "180+1"]
[EndTime "11:46:56 PDT"]
[Termination "Andrii_Prydun won by resignation"]

1. d4 {[%clk 0:03:00.9]} 1... d5 {[%clk 0:03:00]} 2. Nc3 {[%clk 0:03:00.7]} 2...
Nf6 {[%clk 0:02:56.3]} 3. Bf4 {[%clk 0:03:00.6]} 3... a6 {[%clk 0:02:55.4]} 4.
f3 {[%clk 0:03:00.3]} 4... e6 {[%clk 0:02:52.5]} 5. a3 {[%clk 0:02:59.7]} 5...
c5 {[%clk 0:02:51.3]} 6. e3 {[%clk 0:02:59.7]} 6... Nc6 {[%clk 0:02:49.8]} 7.
Nge2 {[%clk 0:02:58.7]} 7... cxd4 {[%clk 0:02:49.5]} 8. exd4 {[%clk 0:02:58.6]}
8... Bd6 {[%clk 0:02:49.2]} 9. Qd2 {[%clk 0:02:57.9]} 9... O-O {[%clk
0:02:48.3]} 10. O-O-O {[%clk 0:02:55.4]} 10... b5 {[%clk 0:02:46.6]} 11. Bxd6
{[%clk 0:02:53.4]} 11... Qxd6 {[%clk 0:02:45.8]} 12. Qf4 {[%clk 0:02:54.3]}
12... Qxf4+ {[%clk 0:02:30.3]} 13. Nxf4 {[%clk 0:02:53.9]} 13... Bd7 {[%clk
0:02:28]} 14. Nd3 {[%clk 0:02:53.3]} 14... Na5 {[%clk 0:02:24.1]} 15. Nc5 {[%clk
0:02:52.7]} 15... Bc6 {[%clk 0:02:23.5]} 16. b4 {[%clk 0:02:50.7]} 16... Nc4
{[%clk 0:02:22.6]} 17. Bxc4 {[%clk 0:02:51.1]} 17... dxc4 {[%clk 0:02:20.6]} 18.
Rhe1 {[%clk 0:02:50.5]} 18... Rfd8 {[%clk 0:02:17.6]} 19. a4 {[%clk 0:02:43.1]}
19... bxa4 {[%clk 0:02:15]} 20. Kb2 {[%clk 0:02:43.1]} 20... Nd5 {[%clk
0:02:06.7]} 21. Nxd5 {[%clk 0:02:41.7]} 21... exd5 {[%clk 0:02:05.3]} 22. c3
{[%clk 0:02:42]} 22... Re8 {[%clk 0:02:03.3]} 23. Ka3 {[%clk 0:02:42.2]} 23...
Kf8 {[%clk 0:01:59.1]} 24. Nxa4 {[%clk 0:02:30.1]} 24... Rxe1 {[%clk 0:01:53.1]}
25. Rxe1 {[%clk 0:02:29.5]} 25... a5 {[%clk 0:01:53.5]} 26. Nb6 {[%clk
0:02:27.1]} 26... axb4+ {[%clk 0:01:50.9]} 27. Kxb4 {[%clk 0:02:27.3]} 27... Ra2
{[%clk 0:01:46.2]} 28. Kc5 {[%clk 0:02:27.3]} 28... Be8 {[%clk 0:01:43.5]} 29.
Kxd5 {[%clk 0:01:58.9]} 29... Rxg2 {[%clk 0:01:42.9]} 30. Nxc4 {[%clk
0:01:53.3]} 30... Rxh2 {[%clk 0:01:41]} 31. Nd6 {[%clk 0:01:53.1]} 31... Bd7
{[%clk 0:01:40.5]} 32. c4 {[%clk 0:01:52.6]} 32... Rh5+ {[%clk 0:01:28.1]} 33.
Re5 {[%clk 0:01:50.9]} 33... Be6+ {[%clk 0:01:24.6]} 34. Ke4 {[%clk 0:01:49.4]}
34... Rxe5+ {[%clk 0:01:17.7]} 35. Kxe5 {[%clk 0:01:50.2]} 35... Ke7 {[%clk
0:01:16.6]} 36. d5 {[%clk 0:01:49.4]} 36... Bd7 {[%clk 0:01:16.5]} 37. c5 {[%clk
0:01:48.8]} 37... f6+ {[%clk 0:01:12.8]} 38. Kd4 {[%clk 0:01:47.4]} 38... h5
{[%clk 0:01:11.5]} 39. Nb7 {[%clk 0:01:45.7]} 39... h4 {[%clk 0:01:05.4]} 40.
Ke3 {[%clk 0:01:43.8]} 40... h3 {[%clk 0:01:00.8]} 41. Kf2 {[%clk 0:01:43.8]}
41... g5 {[%clk 0:01:00.9]} 42. c6 {[%clk 0:01:43.2]} 42... Bc8 {[%clk
0:00:54.8]} 43. d6+ {[%clk 0:01:35.5]} 43... Ke8 {[%clk 0:00:53.3]} 44. Kg3
{[%clk 0:01:32]} 44... g4 {[%clk 0:00:33]} 45. f4 {[%clk 0:01:31.1]} 45... f5
{[%clk 0:00:30.1]} 46. Nc5 {[%clk 0:01:30.5]} 46... Kd8 {[%clk 0:00:26]} 47. d7
{[%clk 0:01:29.5]} 47... Bxd7 {[%clk 0:00:22.3]} 48. cxd7 {[%clk 0:01:17.8]}
48... Ke7 {[%clk 0:00:20.5]} 49. Ne6 {[%clk 0:01:07.6]} 49... Kxd7 {[%clk
0:00:19.8]} 50. Ng7 {[%clk 0:01:08.5]} 50... Ke7 {[%clk 0:00:18.7]} 51. Nxf5+
{[%clk 0:01:06]} 51... Kf6 {[%clk 0:00:19.6]} 52. Ne3 {[%clk 0:01:03.6]} 52...
Kg6 {[%clk 0:00:18.1]} 53. Nxg4 {[%clk 0:00:44.7]} 53... Kf5 {[%clk 0:00:19]}
54. Ne3+ {[%clk 0:00:44.2]} 54... Kg6 {[%clk 0:00:19.9]} 55. Kxh3 {[%clk
0:00:43.8]} 55... Kf6 {[%clk 0:00:19.6]} 56. Kg4 {[%clk 0:00:43.7]} 1-0

[Event "*** SCC Grand Prix: Titled Tuesday Blitz"]
[Site "Chess.com"]
[Date "2020.09.08"]
[Round "9"]
[White "Keures"]
[Black "Anna_ChessMate"]
[Result "1/2-1/2"]
[WhiteElo "2372"]
[BlackElo "2506"]
[TimeControl "180+1"]
[EndTime "11:46:58 PDT"]
[Termination "Game drawn by repetition"]

1. d4 {[%clk 0:02:54.7]} 1... d5 {[%clk 0:02:59.8]} 2. c4 {[%clk 0:02:51]} 2...
c6 {[%clk 0:03:00.1]} 3. Nc3 {[%clk 0:02:49.3]} 3... Nf6 {[%clk 0:03:00.4]} 4.
Bg5 {[%clk 0:02:47.4]} 4... dxc4 {[%clk 0:02:55.5]} 5. Bxf6 {[%clk 0:02:45.1]}
5... exf6 {[%clk 0:02:53.3]} 6. a4 {[%clk 0:02:45.4]} 6... Bb4 {[%clk
0:02:52.9]} 7. e3 {[%clk 0:02:45.2]} 7... Qa5 {[%clk 0:02:52.2]} 8. Qc1 {[%clk
0:02:38.3]} 8... Be6 {[%clk 0:02:52.3]} 9. Nf3 {[%clk 0:02:37.6]} 9... c5 {[%clk
0:02:48.5]} 10. dxc5 {[%clk 0:02:35.1]} 10... Nd7 {[%clk 0:02:47.2]} 11. Nd2
{[%clk 0:02:32.6]} 11... Nxc5 {[%clk 0:02:45.1]} 12. Bxc4 {[%clk 0:02:25]} 12...
Bxc4 {[%clk 0:02:42.9]} 13. Nxc4 {[%clk 0:02:25]} 13... Nd3+ {[%clk 0:02:43.5]}
14. Kf1 {[%clk 0:02:08.1]} 14... Qa6 {[%clk 0:01:53]} 15. Nb5 {[%clk 0:02:07.2]}
15... Nxc1 {[%clk 0:01:19]} 16. Nc7+ {[%clk 0:02:05.7]} 16... Ke7 {[%clk
0:01:19.6]} 17. Nxa6 {[%clk 0:02:05.5]} 17... Nb3 {[%clk 0:01:18.3]} 18. Nxb4
{[%clk 0:02:01.9]} 18... Nxa1 {[%clk 0:01:18.4]} 19. Nd5+ {[%clk 0:01:53.8]}
19... Kd7 {[%clk 0:01:18.8]} 20. Ke2 {[%clk 0:01:47.5]} 20... Rac8 {[%clk
0:01:17.4]} 21. Ndb6+ {[%clk 0:01:37.3]} 21... axb6 {[%clk 0:01:05.8]} 22. Nxb6+
{[%clk 0:01:38.2]} 22... Ke6 {[%clk 0:01:06.4]} 23. Nxc8 {[%clk 0:01:38]} 23...
Rxc8 {[%clk 0:01:07.3]} 24. Rxa1 {[%clk 0:01:37.5]} 24... Rc2+ {[%clk 0:01:08]}
25. Kf3 {[%clk 0:01:35.3]} 25... Rxb2 {[%clk 0:01:07.8]} 26. a5 {[%clk
0:01:34.5]} 26... g5 {[%clk 0:01:05.7]} 27. h3 {[%clk 0:01:30.6]} 27... h5
{[%clk 0:01:04.9]} 28. a6 {[%clk 0:01:27.3]} 28... bxa6 {[%clk 0:01:04.6]} 29.
Rxa6+ {[%clk 0:01:26.6]} 29... Ke7 {[%clk 0:00:52.1]} 30. h4 {[%clk 0:01:22.8]}
30... g4+ {[%clk 0:00:50.6]} 31. Kg3 {[%clk 0:01:21]} 31... Rc2 {[%clk
0:00:46.4]} 32. Ra5 {[%clk 0:01:17.4]} 32... Ke6 {[%clk 0:00:44.5]} 33. Rxh5
{[%clk 0:01:16.2]} 33... f5 {[%clk 0:00:45.4]} 34. Rh8 {[%clk 0:01:12.7]} 34...
Kf6 {[%clk 0:00:45.6]} 35. Rg8 {[%clk 0:01:10.2]} 35... Rc1 {[%clk 0:00:43.7]}
36. Kf4 {[%clk 0:01:05.8]} 36... Rf1 {[%clk 0:00:44.1]} 37. f3 {[%clk
0:01:05.6]} 37... gxf3 {[%clk 0:00:41.3]} 38. gxf3 {[%clk 0:01:04.6]} 38... Rh1
{[%clk 0:00:41.9]} 39. Rh8 {[%clk 0:00:59.8]} 39... Rh3 {[%clk 0:00:37.1]} 40.
Rh5 {[%clk 0:00:52.9]} 40... Ke6 {[%clk 0:00:32.7]} 41. Rh6+ {[%clk 0:00:48.5]}
41... f6 {[%clk 0:00:29.7]} 42. Rh7 {[%clk 0:00:48.4]} 42... Rh1 {[%clk
0:00:26.9]} 43. h5 {[%clk 0:00:48.1]} 43... Rh3 {[%clk 0:00:20.5]} 44. h6 {[%clk
0:00:45.8]} 44... Rh5 {[%clk 0:00:20.5]} 45. Kg3 {[%clk 0:00:39.7]} 45... Rh1
{[%clk 0:00:20.6]} 46. Kf2 {[%clk 0:00:32.4]} 46... Rh3 {[%clk 0:00:18.4]} 47.
Kg2 {[%clk 0:00:32.2]} 47... Rh5 {[%clk 0:00:18.2]} 48. Kg3 {[%clk 0:00:32.6]}
48... Rh1 {[%clk 0:00:18.7]} 49. Kf4 {[%clk 0:00:33.1]} 49... Rh4+ {[%clk
0:00:18.6]} 50. Kg3 {[%clk 0:00:33.5]} 50... Rh1 {[%clk 0:00:19.2]} 1/2-1/2

[Event "*** SCC Grand Prix: Titled Tuesday Blitz"]
[Site "Chess.com"]
[Date "2020.09.08"]
[Round "9"]
[White "Nafania1"]
[Black "LaPorfia"]
[Result "0-1"]
[WhiteElo "2389"]
[BlackElo "2285"]
[TimeControl "180+1"]
[EndTime "11:46:59 PDT"]
[Termination "LaPorfia won by resignation"]

1. e4 {[%clk 0:03:00.9]} 1... d5 {[%clk 0:02:59.7]} 2. exd5 {[%clk 0:03:00.8]}
2... Nf6 {[%clk 0:02:59.6]} 3. Nf3 {[%clk 0:03:00.2]} 3... Bg4 {[%clk
0:02:58.9]} 4. Bb5+ {[%clk 0:02:59.5]} 4... Nbd7 {[%clk 0:02:58.3]} 5. h3 {[%clk
0:03:00]} 5... Bh5 {[%clk 0:02:56.7]} 6. Nc3 {[%clk 0:02:42.2]} 6... a6 {[%clk
0:02:56]} 7. Be2 {[%clk 0:02:41.6]} 7... Nb6 {[%clk 0:02:55.3]} 8. d4 {[%clk
0:02:41.9]} 8... Nbxd5 {[%clk 0:02:54]} 9. Nxd5 {[%clk 0:02:42.2]} 9... Qxd5
{[%clk 0:02:50.2]} 10. c4 {[%clk 0:02:41.7]} 10... Qd7 {[%clk 0:02:26.7]} 11.
Be3 {[%clk 0:02:29.4]} 11... c6 {[%clk 0:02:22.8]} 12. O-O {[%clk 0:02:26.2]}
12... Bxf3 {[%clk 0:02:21.6]} 13. Bxf3 {[%clk 0:02:26.1]} 13... e6 {[%clk
0:02:22.1]} 14. Qb3 {[%clk 0:02:21.8]} 14... Bd6 {[%clk 0:02:20.1]} 15. Rad1
{[%clk 0:02:21.7]} 15... O-O {[%clk 0:02:16.5]} 16. Rfe1 {[%clk 0:02:20.8]}
16... b5 {[%clk 0:02:11.6]} 17. Rc1 {[%clk 0:02:09.8]} 17... Rac8 {[%clk
0:02:04.2]} 18. Bg5 {[%clk 0:02:00.4]} 18... Be7 {[%clk 0:02:01.7]} 19. Red1
{[%clk 0:01:53.8]} 19... Rfd8 {[%clk 0:01:53.1]} 20. a4 {[%clk 0:01:40.6]} 20...
Rb8 {[%clk 0:01:42.4]} 21. cxb5 {[%clk 0:01:26.9]} 21... cxb5 {[%clk 0:01:40.6]}
22. Bc6 {[%clk 0:01:26.5]} 22... Qd6 {[%clk 0:01:31.1]} 23. axb5 {[%clk
0:01:25.4]} 23... axb5 {[%clk 0:01:28.9]} 24. Bf3 {[%clk 0:00:45.4]} 24... Nd5
{[%clk 0:01:18.8]} 25. Bxe7 {[%clk 0:00:45]} 25... Nxe7 {[%clk 0:01:18.9]} 26.
Rc5 {[%clk 0:00:42.5]} 26... b4 {[%clk 0:01:15.9]} 27. Rc4 {[%clk 0:00:41]}
27... Nd5 {[%clk 0:01:13.2]} 28. g3 {[%clk 0:00:32.1]} 28... g6 {[%clk
0:01:11.5]} 29. Kg2 {[%clk 0:00:31.8]} 29... h5 {[%clk 0:00:59.7]} 30. h4 {[%clk
0:00:31.5]} 30... Kg7 {[%clk 0:00:57]} 31. Rdc1 {[%clk 0:00:31.1]} 31... Ne7
{[%clk 0:00:49.8]} 32. Qa4 {[%clk 0:00:25.4]} 32... Nf5 {[%clk 0:00:47.3]} 33.
Rd1 {[%clk 0:00:23.9]} 33... Nh6 {[%clk 0:00:36.9]} 34. d5 {[%clk 0:00:23.9]}
34... exd5 {[%clk 0:00:29.7]} 35. Rxd5 {[%clk 0:00:23.2]} 35... Qe6 {[%clk
0:00:20.4]} 36. Rxd8 {[%clk 0:00:21.5]} 36... Rxd8 {[%clk 0:00:20.6]} 37. Qxb4
{[%clk 0:00:21.2]} 37... Nf5 {[%clk 0:00:19.5]} 38. Qc3+ {[%clk 0:00:20.8]}
38... Qf6 {[%clk 0:00:19.4]} 39. Qxf6+ {[%clk 0:00:20]} 39... Kxf6 {[%clk
0:00:20.3]} 40. b4 {[%clk 0:00:17]} 40... Rd2 {[%clk 0:00:20.5]} 41. b5 {[%clk
0:00:14.8]} 41... Ne3+ {[%clk 0:00:20.3]} 0-1

[Event "*** SCC Grand Prix: Titled Tuesday Blitz"]
[Site "Chess.com"]
[Date "2020.09.08"]
[Round "9"]
[White "jamik13"]
[Black "dachessmandan"]
[Result "0-1"]
[WhiteElo "2226"]
[BlackElo "2415"]
[TimeControl "180+1"]
[EndTime "11:47:03 PDT"]
[Termination "dachessmandan won on time"]

1. d4 {[%clk 0:03:00.9]} 1... Nf6 {[%clk 0:02:58]} 2. Nc3 {[%clk 0:03:00.8]}
2... d5 {[%clk 0:02:57]} 3. Bf4 {[%clk 0:03:00.5]} 3... e6 {[%clk 0:02:53.9]} 4.
e3 {[%clk 0:02:59.4]} 4... a6 {[%clk 0:02:40]} 5. Bd3 {[%clk 0:02:57.2]} 5... c5
{[%clk 0:02:39.8]} 6. dxc5 {[%clk 0:02:55.9]} 6... Bxc5 {[%clk 0:02:40.7]} 7.
Nf3 {[%clk 0:02:55.1]} 7... Nc6 {[%clk 0:02:40]} 8. O-O {[%clk 0:02:51.2]} 8...
O-O {[%clk 0:02:39.6]} 9. Ne5 {[%clk 0:02:49.6]} 9... Bd6 {[%clk 0:02:26.4]} 10.
Nxc6 {[%clk 0:02:43.9]} 10... bxc6 {[%clk 0:02:27.3]} 11. Bxd6 {[%clk
0:02:40.2]} 11... Qxd6 {[%clk 0:02:28.2]} 12. e4 {[%clk 0:02:39.6]} 12... e5
{[%clk 0:02:14.8]} 13. a3 {[%clk 0:02:15]} 13... Bb7 {[%clk 0:02:06.4]} 14. Qe2
{[%clk 0:01:58.2]} 14... c5 {[%clk 0:01:46.6]} 15. exd5 {[%clk 0:01:47.7]} 15...
Nxd5 {[%clk 0:01:47.5]} 16. Ne4 {[%clk 0:01:38.5]} 16... Qc7 {[%clk 0:01:47.4]}
17. Qh5 {[%clk 0:01:20.7]} 17... f5 {[%clk 0:01:24.5]} 18. Ng5 {[%clk
0:01:17.9]} 18... g6 {[%clk 0:01:23.2]} 19. Qh4 {[%clk 0:01:07.6]} 19... Nf4
{[%clk 0:01:00.3]} 20. Bc4+ {[%clk 0:01:05.1]} 20... Kh8 {[%clk 0:01:00.3]} 21.
g3 {[%clk 0:00:48.6]} 21... Nh5 {[%clk 0:00:52.2]} 22. Ne6 {[%clk 0:00:38.9]}
22... Qc6 {[%clk 0:00:49.7]} 23. f3 {[%clk 0:00:38.6]} 23... Rfe8 {[%clk
0:00:35.2]} 24. Ng5 {[%clk 0:00:36.8]} 24... Qf6 {[%clk 0:00:16.1]} 25. g4
{[%clk 0:00:30.5]} 25... h6 {[%clk 0:00:09.2]} 26. Nf7+ {[%clk 0:00:26.1]} 26...
Kg7 {[%clk 0:00:09.6]} 27. Qxf6+ {[%clk 0:00:20.9]} 27... Nxf6 {[%clk
0:00:10.5]} 28. Nd6 {[%clk 0:00:20.2]} 28... Re7 {[%clk 0:00:11]} 29. gxf5
{[%clk 0:00:19.8]} 29... Rd7 {[%clk 0:00:11.6]} 30. Rad1 {[%clk 0:00:18.1]}
30... Rad8 {[%clk 0:00:11]} 31. Nxb7 {[%clk 0:00:05.5]} 31... Rxd1 {[%clk
0:00:11.7]} 32. Nxc5 {[%clk 0:00:03.3]} 32... Rxf1+ {[%clk 0:00:10.9]} 33. Kxf1
{[%clk 0:00:03.4]} 33... Rc8 {[%clk 0:00:07]} 34. Ne6+ {[%clk 0:00:02.5]} 34...
Kh7 {[%clk 0:00:07.6]} 35. Bd3 {[%clk 0:00:01.1]} 35... gxf5 {[%clk 0:00:08.1]}
0-1

[Event "*** SCC Grand Prix: Titled Tuesday Blitz"]
[Site "Chess.com"]
[Date "2020.09.08"]
[Round "9"]
[White "Rodchenkov_Vitalij"]
[Black "anon481216"]
[Result "1-0"]
[WhiteElo "2580"]
[BlackElo "2450"]
[TimeControl "180+1"]
[EndTime "11:47:05 PDT"]
[Termination "Rodchenkov_Vitalij won by resignation"]

1. d4 {[%clk 0:03:00.9]} 1... d5 {[%clk 0:02:59.5]} 2. c4 {[%clk 0:02:59.6]}
2... e6 {[%clk 0:02:59.2]} 3. Nf3 {[%clk 0:02:59.3]} 3... Nf6 {[%clk 0:02:58.7]}
4. Nc3 {[%clk 0:02:58.7]} 4... c6 {[%clk 0:02:57.2]} 5. e3 {[%clk 0:02:54.4]}
5... Nbd7 {[%clk 0:02:55.8]} 6. Qc2 {[%clk 0:02:54.4]} 6... Bd6 {[%clk
0:02:55.6]} 7. Bd3 {[%clk 0:02:40.7]} 7... O-O {[%clk 0:02:55.1]} 8. O-O {[%clk
0:02:40.6]} 8... dxc4 {[%clk 0:02:54.6]} 9. Bxc4 {[%clk 0:02:40.2]} 9... a6
{[%clk 0:02:54.2]} 10. Rd1 {[%clk 0:02:37.5]} 10... b5 {[%clk 0:02:45.2]} 11.
Bd3 {[%clk 0:02:35.8]} 11... Qc7 {[%clk 0:02:43.3]} 12. a4 {[%clk 0:02:30.9]}
12... Bb7 {[%clk 0:02:26.5]} 13. axb5 {[%clk 0:02:13.2]} 13... cxb5 {[%clk
0:02:11.9]} 14. Ne4 {[%clk 0:02:05.2]} 14... Qxc2 {[%clk 0:01:56.8]} 15. Nxf6+
{[%clk 0:02:04.4]} 15... Nxf6 {[%clk 0:01:56.5]} 16. Bxc2 {[%clk 0:02:04.9]}
16... Rfc8 {[%clk 0:01:54.2]} 17. Bd3 {[%clk 0:02:04.5]} 17... Ne4 {[%clk
0:01:47.4]} 18. Bd2 {[%clk 0:02:03.1]} 18... Nxd2 {[%clk 0:01:46.9]} 19. Nxd2
{[%clk 0:02:02.9]} 19... f5 {[%clk 0:01:32.8]} 20. e4 {[%clk 0:01:52.8]} 20...
g6 {[%clk 0:01:31.5]} 21. f3 {[%clk 0:01:48.5]} 21... Kf7 {[%clk 0:01:30.4]} 22.
Nb3 {[%clk 0:01:45.1]} 22... Bb4 {[%clk 0:01:24.2]} 23. Kf2 {[%clk 0:01:39.5]}
23... Ke7 {[%clk 0:01:11]} 24. Ke3 {[%clk 0:01:39.4]} 24... Rc7 {[%clk
0:01:02.6]} 25. Rdc1 {[%clk 0:01:34.2]} 25... Rac8 {[%clk 0:01:00.8]} 26. Rxc7+
{[%clk 0:01:32.3]} 26... Rxc7 {[%clk 0:01:00.5]} 27. g4 {[%clk 0:01:27.8]} 27...
fxg4 {[%clk 0:00:58.6]} 28. fxg4 {[%clk 0:01:28.1]} 28... Rc8 {[%clk 0:00:49.2]}
29. h4 {[%clk 0:01:25.2]} 29... Rc7 {[%clk 0:00:40]} 30. h5 {[%clk 0:01:16.8]}
30... gxh5 {[%clk 0:00:35]} 31. gxh5 {[%clk 0:01:16.8]} 31... Kf6 {[%clk
0:00:34.7]} 32. Rg1 {[%clk 0:01:14.5]} 32... Rg7 {[%clk 0:00:19.5]} 33. e5+
{[%clk 0:01:03.7]} 33... Kf7 {[%clk 0:00:19.7]} 34. Rxg7+ {[%clk 0:01:01.2]}
34... Kxg7 {[%clk 0:00:19.9]} 35. Nc5 {[%clk 0:01:01.8]} 35... Bc8 {[%clk
0:00:13.5]} 36. Be2 {[%clk 0:00:57.6]} 36... Kh6 {[%clk 0:00:10.9]} 37. Bg4
{[%clk 0:00:57.5]} 37... Bxc5 {[%clk 0:00:09.5]} 38. dxc5 {[%clk 0:00:56.7]}
38... Kg5 {[%clk 0:00:10.1]} 39. Bf3 {[%clk 0:00:52.2]} 39... h6 {[%clk
0:00:07.8]} 40. Ba8 {[%clk 0:00:47.1]} 40... Kf5 {[%clk 0:00:05.2]} 41. Kd4
{[%clk 0:00:46.6]} 41... a5 {[%clk 0:00:03]} 42. c6 {[%clk 0:00:46.9]} 42... a4
{[%clk 0:00:03.2]} 43. Bb7 {[%clk 0:00:47.2]} 43... b4 {[%clk 0:00:03.2]} 44.
Bxc8 {[%clk 0:00:46.4]} 44... a3 {[%clk 0:00:03.6]} 45. bxa3 {[%clk 0:00:46.5]}
45... bxa3 {[%clk 0:00:04]} 46. Kc3 {[%clk 0:00:40.9]} 46... Kxe5 {[%clk
0:00:04.1]} 47. Kb3 {[%clk 0:00:41.1]} 47... Kd6 {[%clk 0:00:04.3]} 48. Bd7
{[%clk 0:00:41]} 48... e5 {[%clk 0:00:04.5]} 49. Kxa3 {[%clk 0:00:41.4]} 49...
e4 {[%clk 0:00:05]} 50. Kb3 {[%clk 0:00:42.1]} 50... e3 {[%clk 0:00:05.4]} 51.
Kc2 {[%clk 0:00:42.1]} 1-0

[Event "*** SCC Grand Prix: Titled Tuesday Blitz"]
[Site "Chess.com"]
[Date "2020.09.08"]
[Round "9"]
[White "UmarovSabir"]
[Black "el-roedor"]
[Result "0-1"]
[WhiteElo "2368"]
[BlackElo "2550"]
[TimeControl "180+1"]
[EndTime "11:47:05 PDT"]
[Termination "el-roedor won on time"]

1. e4 {[%clk 0:03:00.9]} 1... c5 {[%clk 0:02:59.7]} 2. a3 {[%clk 0:02:59.7]}
2... g6 {[%clk 0:02:59.3]} 3. Nf3 {[%clk 0:02:58.9]} 3... Bg7 {[%clk 0:02:59.6]}
4. Bc4 {[%clk 0:02:58.2]} 4... Nc6 {[%clk 0:02:58.6]} 5. O-O {[%clk 0:02:57.4]}
5... e6 {[%clk 0:02:58.8]} 6. d3 {[%clk 0:02:52.7]} 6... Nge7 {[%clk 0:02:58.8]}
7. Re1 {[%clk 0:02:51.6]} 7... O-O {[%clk 0:02:57.3]} 8. Nc3 {[%clk 0:02:45.6]}
8... h6 {[%clk 0:02:46.5]} 9. Ba2 {[%clk 0:02:31.9]} 9... d5 {[%clk 0:02:43.5]}
10. exd5 {[%clk 0:02:25.1]} 10... exd5 {[%clk 0:02:41.5]} 11. Bf4 {[%clk
0:02:24.9]} 11... Be6 {[%clk 0:02:29.5]} 12. Qd2 {[%clk 0:02:18.3]} 12... g5
{[%clk 0:02:28.3]} 13. Bg3 {[%clk 0:02:15.8]} 13... Ng6 {[%clk 0:02:25.5]} 14.
h3 {[%clk 0:02:09.5]} 14... Qd7 {[%clk 0:02:21.3]} 15. Nb5 {[%clk 0:01:57.1]}
15... Bxb2 {[%clk 0:02:01.3]} 16. Rab1 {[%clk 0:01:56]} 16... Bg7 {[%clk
0:02:00.8]} 17. Nc7 {[%clk 0:01:54.9]} 17... Rac8 {[%clk 0:01:50.3]} 18. Nxe6
{[%clk 0:01:53.8]} 18... fxe6 {[%clk 0:01:47.5]} 19. Nh2 {[%clk 0:01:25.2]}
19... Rce8 {[%clk 0:01:35.1]} 20. Ng4 {[%clk 0:00:56.3]} 20... b6 {[%clk
0:01:22.5]} 21. c4 {[%clk 0:00:29.4]} 21... d4 {[%clk 0:01:14.9]} 22. Bb3 {[%clk
0:00:27.6]} 22... Nf4 {[%clk 0:00:45.9]} 23. Ba4 {[%clk 0:00:25.7]} 23... Qd6
{[%clk 0:00:37.8]} 24. Re4 {[%clk 0:00:22.6]} 24... e5 {[%clk 0:00:31.9]} 25.
Rbe1 {[%clk 0:00:21.4]} 25... h5 {[%clk 0:00:27.6]} 26. Bxc6 {[%clk 0:00:19.4]}
26... Qxc6 {[%clk 0:00:28.1]} 27. Nxe5 {[%clk 0:00:18.8]} 27... Bxe5 {[%clk
0:00:28.3]} 28. Bxf4 {[%clk 0:00:05.8]} 28... Bxf4 {[%clk 0:00:24.6]} 29. Qe2
{[%clk 0:00:06]} 29... Rxe4 {[%clk 0:00:24.1]} 30. dxe4 {[%clk 0:00:06.4]} 30...
Qg6 {[%clk 0:00:19.8]} 31. e5 {[%clk 0:00:06.3]} 31... Re8 {[%clk 0:00:17.8]}
32. g3 {[%clk 0:00:05.1]} 32... Bxe5 {[%clk 0:00:17.1]} 33. Kh1 {[%clk
0:00:04.2]} 33... g4 {[%clk 0:00:15.4]} 34. hxg4 {[%clk 0:00:03.5]} 34... hxg4
{[%clk 0:00:16]} 35. Kg2 {[%clk 0:00:01.7]} 35... d3 {[%clk 0:00:12.9]} 36. Qe3
{[%clk 0:00:01.4]} 36... Kf7 {[%clk 0:00:11.3]} 0-1

[Event "*** SCC Grand Prix: Titled Tuesday Blitz"]
[Site "Chess.com"]
[Date "2020.09.08"]
[Round "9"]
[White "pavlitas17"]
[Black "Ariadna_Atreides"]
[Result "1-0"]
[WhiteElo "2367"]
[BlackElo "2064"]
[TimeControl "180+1"]
[EndTime "11:47:05 PDT"]
[Termination "pavlitas17 won on time"]

1. d3 {[%clk 0:03:00.9]} 1... Nf6 {[%clk 0:02:54.4]} 2. Nf3 {[%clk 0:02:59.6]}
2... d5 {[%clk 0:02:53.2]} 3. g3 {[%clk 0:02:59.6]} 3... c6 {[%clk 0:02:52.9]}
4. Bg2 {[%clk 0:03:00.2]} 4... Bg4 {[%clk 0:02:52.1]} 5. O-O {[%clk 0:03:01]}
5... e6 {[%clk 0:02:51.9]} 6. Nbd2 {[%clk 0:03:00.1]} 6... Be7 {[%clk
0:02:50.9]} 7. b3 {[%clk 0:03:00.7]} 7... O-O {[%clk 0:02:50.3]} 8. Bb2 {[%clk
0:03:01.2]} 8... Nbd7 {[%clk 0:02:33]} 9. c4 {[%clk 0:03:00]} 9... a5 {[%clk
0:02:32.1]} 10. cxd5 {[%clk 0:02:59.9]} 10... exd5 {[%clk 0:02:31.2]} 11. h3
{[%clk 0:03:00.1]} 11... Bxf3 {[%clk 0:02:25.6]} 12. Nxf3 {[%clk 0:02:59.5]}
12... Bd6 {[%clk 0:02:23.8]} 13. Nd4 {[%clk 0:02:58.5]} 13... Re8 {[%clk
0:02:11.8]} 14. e4 {[%clk 0:02:55.4]} 14... Bc5 {[%clk 0:01:58.1]} 15. Nf5
{[%clk 0:02:49.2]} 15... Qb6 {[%clk 0:01:37.9]} 16. Qf3 {[%clk 0:02:23.8]} 16...
d4 {[%clk 0:01:02.5]} 17. Rac1 {[%clk 0:02:18.2]} 17... a4 {[%clk 0:01:00.4]}
18. Rxc5 {[%clk 0:02:16.4]} 18... Qxc5 {[%clk 0:00:56]} 19. Bxd4 {[%clk
0:02:16.2]} 19... Qf8 {[%clk 0:00:44.9]} 20. e5 {[%clk 0:02:15.5]} 20... Nxe5
{[%clk 0:00:40.5]} 21. Bxe5 {[%clk 0:02:14.5]} 21... Rxe5 {[%clk 0:00:39.9]} 22.
d4 {[%clk 0:02:14.4]} 22... Ree8 {[%clk 0:00:37.2]} 23. g4 {[%clk 0:02:07]}
23... Nd5 {[%clk 0:00:34.7]} 24. Qg3 {[%clk 0:02:02.8]} 24... axb3 {[%clk
0:00:34.3]} 25. axb3 {[%clk 0:02:01.8]} 25... Rad8 {[%clk 0:00:21.2]} 26. g5
{[%clk 0:02:00.6]} 26... Nb4 {[%clk 0:00:19.1]} 27. Qc3 {[%clk 0:01:45.2]} 27...
Rd7 {[%clk 0:00:15.8]} 28. h4 {[%clk 0:01:36.6]} 28... Red8 {[%clk 0:00:15]} 29.
Bh3 {[%clk 0:01:35.5]} 29... Kh8 {[%clk 0:00:13.1]} 30. h5 {[%clk 0:01:34.7]}
30... Rd5 {[%clk 0:00:12.4]} 31. Kh1 {[%clk 0:01:23.5]} 31... g6 {[%clk
0:00:11.7]} 32. hxg6 {[%clk 0:01:15.8]} 32... hxg6 {[%clk 0:00:10.8]} 33. Ng3
{[%clk 0:01:12]} 33... Qg7 {[%clk 0:00:10.4]} 34. Qxb4 {[%clk 0:01:09.3]} 34...
Rxd4 {[%clk 0:00:10.5]} 35. Qe7 {[%clk 0:01:07.7]} 35... Rd1 {[%clk 0:00:07.3]}
36. Kg1 {[%clk 0:01:00]} 36... Rxf1+ {[%clk 0:00:06.4]} 37. Bxf1 {[%clk
0:00:59.8]} 37... Qd4 {[%clk 0:00:05.8]} 38. Qxf7 {[%clk 0:00:56.9]} 38... Qd6
{[%clk 0:00:04.4]} 39. Qxb7 {[%clk 0:00:50.4]} 39... Rf8 {[%clk 0:00:03.9]} 40.
Qa7 {[%clk 0:00:46.3]} 40... Qf4 {[%clk 0:00:03.7]} 41. Qe3 {[%clk 0:00:45.3]}
41... Qf7 {[%clk 0:00:03.1]} 42. Qe5+ {[%clk 0:00:44]} 42... Kg8 {[%clk
0:00:02.2]} 43. Ne4 {[%clk 0:00:44]} 43... Qf4 {[%clk 0:00:01.8]} 44. Nf6+
{[%clk 0:00:40.8]} 44... Rxf6 {[%clk 0:00:01.8]} 45. Qxf6 {[%clk 0:00:40.4]}
45... Qg4+ {[%clk 0:00:01.6]} 46. Bg2 {[%clk 0:00:40.2]} 46... Qd1+ {[%clk
0:00:01.1]} 47. Kh2 {[%clk 0:00:40.1]} 47... Qh5+ {[%clk 0:00:01.6]} 48. Kg3
{[%clk 0:00:40]} 1-0